Cogmind - Beta 11.1 --- EXPLORER MODE // 2022.07.15 @ 18:50:52 Player: Spark774th Result: Destroyed by G-47 Trooper with Particle Gun Performance ------------- Evolutions (2) 1000 Regions Visited (3) 600 Robots Destroyed (33) 165 Value Destroyed (839) 839 Prototype IDs (0) 0 Alien Tech Used (0) 0 Bonus (0) 0 TOTAL SCORE: 2604 Bonus ------- None Cogmind --------- Core Integrity 0/550 Matter 298/300 Energy 100/100 System Corruption 0% Temperature Cool (9) Movement Core (700) Ox13 Location -8/Materials Parts ------- > --- POWER (1) -------- (None) > --- PROPULSION (4) --- (None) > --- UTILITY (5) ------ Large Storage Unit Large Storage Unit Visual Processing Unit > --- WEAPON (2) ------- Mining Claw > --- INVENTORY (15) --- Improved Treads Improved Treads Aluminum Leg Heat Sink Cooling System Peak State ------------ > --- POWER ------------ Improved Ion Engine > --- PROPULSION ------- Aluminum Leg Aluminum Leg Aluminum Leg Aluminum Leg > --- UTILITY ---------- Large Storage Unit Visual Processing Unit Terrain Scanner Targeting Computer > --- WEAPON ----------- Medium Laser Particle Cannon > --- INVENTORY -------- Ion Engine Improved Treads Improved Treads Aluminum Leg Aluminum Leg Aluminum Leg Aluminum Leg Aluminum Leg Heat Sink Cooling System Large Storage Unit Light Armor Plating Mining Claw [Rating: 15] Favorites ----------- Power Ion Engine Engine Ion Engine Propulsion Aluminum Leg Leg Aluminum Leg Utility Terrain Scanner Device Terrain Scanner Storage Medium Storage Unit Processor Visual Processing Unit Protection Core Shielding Weapon Medium Laser Energy Gun Medium Laser Energy Cannon Particle Cannon Ballistic Gun Assault Rifle Slashing Weapon Mining Claw Special Melee Weapon Datajack Build | -11 -10 -9 -8 ------- Run | Scr Mat Mat Mat Slots Evolved 5 | . 1 2 2 Power . | . . . . Propulsion 2 | . 1 . 1 Utility 3 | . . 2 1 Weapon . | . . . . Parts Attached 33 | 8 5 10 10 Power 5 | 1 1 2 1 Engine 5 | 1 1 2 1 Core . | . . . . Reactor . | . . . . Propulsion 11 | 2 1 2 6 Treads . | . . . . Leg 11 | 2 1 2 6 Wheel . | . . . . Hover . | . . . . Flight . | . . . . Utility 9 | 2 1 4 2 Device 2 | . 1 1 . Storage 3 | 1 . 1 1 Processor 2 | . . 2 . Hackware . | . . . . Protection 2 | 1 . . 1 Artifact . | . . . . Weapon 8 | 3 2 2 1 Energy Gun 2 | 1 1 . . Energy Cannon 1 | . . 1 . Ballistic Gun 3 | 2 . 1 . Ballistic Cannon . | . . . . Launcher . | . . . . Special Weapon . | . . . . Impact Weapon . | . . . . Slashing Weapon 1 | . . . 1 Piercing Weapon . | . . . . Special Melee Weapon 1 | . 1 . . Unidentified Prototypes . | . . . . Parts Lost 13 | . . 1 12 Power 2 | . . . 2 Propulsion 8 | . . . 8 Utility 2 | . . . 2 Weapon 1 | . . 1 . Highest Loss Streak 6 | . . 1 6 To Critical Strikes . | . . . . Average Slot Usage (%) 90 | . 97 92 64 Engine 9 | . 12 10 3 Leg 30 | . 34 30 21 Device 6 | . 2 10 5 Storage 10 | . 12 10 9 Processor 7 | . . 12 12 Protection 3 | . 9 . 1 Energy Gun 14 | . 19 12 4 Energy Cannon 1 | . . 2 3 Ballistic Gun 3 | . 3 4 . Naked Turns . | . . . . Heaviest Build 45 | 20 20 34 45 Greatest Support 40 | 20 30 30 40 Greatest Overweight (x) 13 | 1 . 1 13 Average Overweight (x) . | . . . 1 Largest Inventory Capacity 15 | 10 10 15 15 Average Capacity 11 | 7 10 13 15 Most Carried 15 | 7 10 15 15 Average Carried 10 | 4 9 12 11 Final Capacity 15 | 10 10 15 15 Final Carried 15 | 7 10 15 5 Class Distribution -------------------- 100% | Hacker-Mutant Dominant Class ---------------- Hacker-Mutant | -10/Materials Hacker-Mutant | -9/Materials Hacker-Mutant | -8/Materials Resources | -11 -10 -9 -8 ----------- Run | Scr Mat Mat Mat Matter Collected 597 | 278 68 203 48 Remotely . | . . . . Salvage Created 1088 | 83 292 665 48 Parts 59 | . 23 34 2 Haulers Intercepted 1 | . . 1 . Recyclers Shooed 1 | . 1 . . Parts Field Recycled . | . . . . Retrieved Matter . | . . . . Parts Self-Destructed . | . . . . Prevented . | . . . . Kills | -11 -10 -9 -8 ------- Run | Scr Mat Mat Mat Combat Hostiles Destroyed 23 | . 8 14 1 Melee 1 | . . . 1 Guns 17 | . 8 9 . Cannons 3 | . . 3 . AOE 2 | . . 2 . Classes Destroyed 11 | 1 5 4 1 Worker 2 | . 1 1 . Builder 1 | . 1 . . Hauler 1 | . . 1 . Recycler 2 | 1 . 1 . Mechanic 1 | . . 1 . Watcher 3 | . 2 1 . Swarmer 9 | . 6 3 . Grunt 9 | . 2 7 . Brawler 1 | . . 1 . Duelist 1 | . . . 1 Sentry 3 | . . 3 . Best Kill Streak 5 | 1 5 5 1 Combat Bots Only 4 | . 4 4 1 Max Kills in Single Turn 3 | 1 1 3 1 Gunslinging . | . . . . Exploded 2 | . . 2 . Melee 1 | . . . 1 Uniques/NPCs Destroyed . | . . . . Combat | -11 -10 -9 -8 -------- Run | Scr Mat Mat Mat Damage Taken 2241 | . 89 505 1647 Core 632 | . 22 57 553 Absorbed by Shields . | . . . . Core Remaining (%) 92 | 100 91 85 . Volleys Fired 85 | 4 21 60 . Largest 2 | 1 2 2 . Hottest 118 | 50 90 118 . Shots Fired 155 | 4 38 113 . Gun 143 | 4 38 101 . Cannon 12 | . . 12 . Launcher . | . . . . Special . | . . . . Kinetic 38 | . 6 32 . Thermal 97 | 4 21 72 . Explosive . | . . . . Electromagnetic 20 | . 11 9 . Robot Hit Streak 27 | 4 15 27 . Robot Miss Streak 2 | . 1 2 . Penetration Max . | . . . . Secondary Targets 2 | . 2 . . Max Gunslinging Chain 1 | . 1 . . Shots Hit Robots 137 | 4 32 93 8 Core Hits 51 | 2 15 32 2 Critical Kills . | . . . . Critical Parts Destroyed . | . . . . Critical Strikes 9 | . 2 7 . Burn 9 | . 2 7 . Melee Attacks 11 | . 3 . 8 Impact . | . . . . Slashing 8 | . . . 8 Piercing . | . . . . Sneak Attacks . | . . . . Combat Hostiles . | . . . . Follow-up Attacks . | . . . . Damage Inflicted 2212 | 51 353 1652 156 Guns 1391 | 51 319 1021 . Cannons 205 | . . 205 . Explosions 457 | . 31 426 . Melee 156 | . . . 156 Ramming 3 | . 3 . . Kinetic 370 | . 36 334 . Thermal 1501 | 51 218 1232 . Explosive . | . . . . Electromagnetic 182 | . 96 86 . Impact . | . . . . Slashing 156 | . . . 156 Piercing . | . . . . Highest Corruption 2 | . 2 . . Average Corruption 1 | . 1 . . Corruption Purged . | . . . . Corruption Blocked . | . . . . Effects 5 | . 5 . . Message Errors 2 | . 2 . . Matter Fused 1 | . 1 . . Energy Discharges 1 | . 1 . . Misfires 1 | . 1 . . Overload Shots . | . . . . Overflow Damage 85 | . . 85 . Projectiles . | . . . . Explosions 85 | . . 85 . Melee . | . . . . Knockbacks . | . . . . Impact . | . . . . Kinetic . | . . . . Secondary . | . . . . Self-Inflicted Damage 61 | . . 61 . Shots 2 | . . 2 . Rammed . | . . . . Targets Rammed 2 | . 1 1 . Kicked 2 | . 1 1 . Crushed . | . . . . Highest Temperature 372 | 40 120 372 14 Average Temperature 61 | 20 32 78 12 Received Heat Transfer 1362 | . 6 276 1080 Effects 1 | . . 1 . Short Circuit 1 | . . 1 . Siege Activations . | . . . . Robots Corrupted . | . . . . Combat Hostiles . | . . . . Parts Fried . | . . . . Impact Corruptions . | . . . . Robots Melted . | . . . . Combat Hostiles . | . . . . Parts Melted 16 | 1 2 13 . Heat Transferred 3965 | 148 753 3064 . Parts Sabotaged . | . . . . Parts Stolen . | . . . . Parts Stripped . | . . . . Power Chain Reactions 2 | . 1 1 . Missiles Intercepted . | . . . . Alert | -11 -10 -9 -8 ------- Run | Scr Mat Mat Mat Peak Influence 307 | 5 170 307 60 Initial 51 | . 2 51 1 Average 94 | 1 87 131 5 Maximum Alert Level 1 | . . 1 . Low Security (%) 86 | 100 100 70 100 Level 1 13 | . . 29 . Level 2 . | . . . . Level 3 . | . . . . Level 4 . | . . . . Level 5 . | . . . . High Security . | . . . . Max Security . | . . . . Squads Dispatched 4 | . . 2 2 Investigation . | . . . . Extermination . | . . . . Reinforcement 4 | . . 2 2 Assault . | . . . . Garrison . | . . . . Intercept . | . . . . Searches Triggered . | . . . . Construction Impeded . | . . . . Haulers Reinforced . | . . . . Active Scanning Responses . | . . . . Cargo Convoy Interrupts . | . . . . Stealth | -11 -10 -9 -8 --------- Run | Scr Mat Mat Mat Distress Signals 3 | . 1 . 2 Communications Jammed . | . . . . Distress Signals . | . . . . Times Spotted 48 | . 14 21 13 Peak Tracking Total 8 | . 3 5 8 Tactical Retreats 3 | . 2 . 1 Traps | -11 -10 -9 -8 ------- Run | Scr Mat Mat Mat Traps Triggered 3 | . 2 . 1 Indirectly . | . . . . Trap Hack Attempts . | . . . . Triggered . | . . . . Disarmed 6 | . 6 . . Reprogrammed . | . . . . Reused . | . . . . Traps Extracted . | . . . . Installed . | . . . . Triggered . | . . . . Machines | -11 -10 -9 -8 ---------- Run | Scr Mat Mat Mat Machines Disabled 13 | . 1 12 . Max in Single Turn 9 | . 1 9 . Machines Sabotaged . | . . . . Garrisons Compromised . | . . . . Overloaded Fab Kills . | . . . . Hacking | -11 -10 -9 -8 --------- Run | Scr Mat Mat Mat Machines Accessed 2 | . 2 . . Terminals 2 | . 2 . . Fabricators . | . . . . Repair Stations . | . . . . Recycling Units . | . . . . Scanalyzers . | . . . . Garrison Access . | . . . . Total Hacks 4 | . 4 . . Successful 4 | . 4 . . Failed . | . . . . Catastrophic . | . . . . Database Lockouts . | . . . . Manual . | . . . . Terminals 4 | . 4 . . Fabricators . | . . . . Repair Stations . | . . . . Recycling Units . | . . . . Scanalyzers . | . . . . Garrison Access . | . . . . Terminal Hacks 4 | . 4 . . Alert Level 1 | . 1 . . Disarm Traps 1 | . 1 . . Dispatch Records 1 | . 1 . . Hauler Manifests 1 | . 1 . . Fabricator Hacks . | . . . . Repair Station Hacks . | . . . . Recycling Unit Hacks . | . . . . Scanalyzer . | . . . . Garrison Access Hacks . | . . . . Unauthorized Hacks . | . . . . Terminals . | . . . . Fabricators . | . . . . Repair Stations . | . . . . Recycling Units . | . . . . Scanalyzers . | . . . . Garrison Access . | . . . . Data Cores Recovered . | . . . . Used . | . . . . Hacking Detections 1 | . 1 . . Full Trace Events . | . . . . Feedback Events . | . . . . Feedback Blocked . | . . . . Robot Schematics Acquired . | . . . . Robots Built . | . . . . Authchips . | . . . . Time . | . . . . Total Robot Build Rating . | . . . . Part Schematics Acquired . | . . . . Parts Built . | . . . . Authchips . | . . . . Time . | . . . . Total Part Build Rating . | . . . . Parts Repaired . | . . . . Time . | . . . . Parts Recycled . | . . . . Recycled Matter . | . . . . Retrieved Matter . | . . . . Retrieved Components . | . . . . Parts Scanalyzed . | . . . . Part Schematics Acquired . | . . . . Parts Damaged . | . . . . Bothacking | -11 -10 -9 -8 ------------ Run | Scr Mat Mat Mat Used RIF Installer . | . . . . Robots Hacked 1 | . 1 . . Non-combat 1 | . 1 . . Combat . | . . . . Robot Hacks Applied 1 | . 1 . . parse_system 1 | . 1 . . Relay Couplers Released . | . . . . Fabnet Peak Effective % . | . . . . Robots Rewired . | . . . . Allies Hacked . | . . . . Hacks Repelled . | . . . . Allies | -11 -10 -9 -8 -------- Run | Scr Mat Mat Mat Total Allies . | . . . . Largest Group . | . . . . Highest-Rated Group . | . . . . Highest-Rated Ally . | . . . . Total Orders . | . . . . Ally Attacks . | . . . . Total Damage . | . . . . Kills . | . . . . Allies Corrupted . | . . . . Allies Melted . | . . . . Intel | -11 -10 -9 -8 ------- Run | Scr Mat Mat Mat Robot Analysis Total . | . . . . Derelict Logs Recovered . | . . . . Drone Launches . | . . . . Drone Recoveries . | . . . . Exploration | -11 -10 -9 -8 ------------- Run | Scr Mat Mat Mat Turns Passed 1911 | 76 728 881 226 Spaces Moved 1041 | 45 452 437 107 Core 15 | 6 . . 9 Treads . | . . . . Legs 1026 | 39 452 437 98 Wheels . | . . . . Hover . | . . . . Flight . | . . . . Fastest Speed 50 | 50 120 120 120 Average Speed 132 | 111 120 136 176 Slowest Speed 700 | 120 120 190 700 Overloaded Moves . | . . . . Propulsion Burnouts . | . . . . Robots Hopped . | . . . . Cave-ins Triggered . | . . . . Exploration Rate (%) 35 | 3 64 57 17 Regions Visited 3 Branch Regions . Pre-discovered Areas . | . . . . Known Exits Taken 3 | 1 1 1 . Unknown Exits Taken . | . . . . Scrap Searched . | . . . . Spaces Dug . | . . . . Terrain Destroyed 16 | . 6 10 . Melee . | . . . . Projectile . | . . . . AOE 16 | . 6 10 . Terrain Rammed . | . . . . Walls Destroyed . | . . . . Machines Disabled . | . . . . Actions | -11 -10 -9 -8 --------- Run | Scr Mat Mat Mat Total 1405 | 62 600 610 133 Wait 195 | . 104 85 6 Move 1038 | 44 451 436 107 Hop . | . . . . Pick Up 25 | 6 8 11 . Fast Attach 10 | 7 3 . . Attach 15 | . . 5 10 Detach . | . . . . Swap 8 | 1 2 5 . Drop 16 | . 7 7 2 Fire 85 | 4 21 60 . Melee 11 | . 3 . 8 Ram . | . . . . Kick 2 | . 1 1 . Crush . | . . . . Escape Stasis . | . . . . Rewire . | . . . . Trap . | . . . . Miscellaneous . | . . . . Route ------- -11/Scrapyard -10/Materials (discovered 2 exits: *Mat x2) -9/Materials (discovered 2 exits: *Mat / *Min) -8/Materials History --------- Turn | Location | Event 4 | -11/Scrapyard | Identified exit to Materials 4 | -11/Scrapyard | Discovered exit to Materials (range 15) 77 | -11/Scrapyard | Entered Materials 77 | -10/Materials | Evolved 1 slot: Propulsion x1 334 | -10/Materials | Build established: Hacker-Mutant 420 | -10/Materials | Identified exit to Materials 420 | -10/Materials | Discovered exit to Materials (range 9) 747 | -10/Materials | Discovered exit to Materials (range 15) 805 | -10/Materials | Entered another Materials area 805 | -9/Materials | Evolved 2 slots: Utility x2 1071 | -9/Materials | Identified exit to Mines 1071 | -9/Materials | Discovered exit to Mines (range 14) 1656 | -9/Materials | Identified exit to Materials 1656 | -9/Materials | Discovered exit to Materials (range 17) 1686 | -9/Materials | Entered another Materials area 1686 | -8/Materials | Evolved 2 slots: Propulsion x1, Utility x1 1845 | -8/Materials | Core integrity fell below 50% 1855 | -8/Materials | Lost 6 parts (1p4n1u) 1894 | -8/Materials | Core integrity fell below 20% 1912 | -8/Materials | Destroyed by G-47 Trooper with Particle Gun Last Messages --------------- 01817_ Targeting Computer destroyed. 01824_ Aluminum Leg destroyed. 01831_ Dropped Terrain Scanner. 01862_ Critical hit (Burn: +37). 01878_ W-25 Informer distress signal alerts nearby ally. 01880_ Critical hit (Burn: +37). 01882_ L-31 Rogue destroyed. 01883_ Ion Engine destroyed. 01885_ Acquired 48 matter. 01891_ Critical hit (Burn: +37). 01893_ Aluminum Leg destroyed. 01897_ Lgt. Armor Plating destroyed. 01898_ Aluminum Leg destroyed. 01903_ Critical hit (Burn: +37). 01905_ Aluminum Leg destroyed. 01906_ Critical hit (Burn: +37). 01908_ G-47 Trooper destroyed. 01908_ K-01 Serf cleans the Nuclear Reactor. 01910_ K-01 Serf collects debris. [Achievement: First Step to Greatness] Map ----- +----------------------------------------------------+ | ????????????????????#????# ?????? ?????????????? | | ????????????????????? ?? ????????????????????? | | ????????????????????? ???????????????????? | | ?????????????????????"" """ ???????????????????? | | ?????????????????# """ "T" ??#????????????????? | | ?????????????????# """ " " ???????????????????? | | ?????????????????# ??????? ?????????#?? | | ?????????????????# ###############???#? | | ????????????????????""" !!% #????? | | ??????????????????? """ !![ #????? | | ?????????????????# """ !!! #????? | | ?????????????????# #????? | | ?????????????????# ############????? | | ?????????????????+ """ """ #????????????#??? | | ??????????????????? """ """ #???????????????? | | ?????????????????# """ """ #???????????????? | | ?????????????????# #???????????????? | | ?????????????????# k ##??????????????? | | ?????????????????# """ """ #??????????????#? | | ??????????????????? """ """ #?#???????#?????? | | ???????????????### """ """ #?????#?????????? | | ?????????????? k #???????????????? | | ?????????????? #???????????????? | | ?????????????? g ##??????????????? | | ???????????????######+### #?????####??#???? | | ????????????????????????#@ #### #?????# #???? | | ????????????????????????#% #??# ####### """ #???? | | ????????????????????????# #??# ## "T" #???? | | ???????????????????#????# ##?# ## #??#? | | ????????????????????????# #??###### ## #???? | | ???????????????????????## ##?####?# ## """ #???? | | ????????????????????????# #??? ?# ## """ #???? | | ?????????????????? ?????# /#???? # ## """ #???? | | ???????????????#???? ???#! #?"??? # / ##### | | ????????????????????????#gY#? ???? + ## * ## | | ????????????????????????# k#?? ????# ## ## | | ????????????????????????# ######### ## ! ## | | ????????????????????????# ##+##### " | | ????????????????????????# ! # "" | | ????????????????????? ??# ! """ " " | | ????????????????????????# """ "" | | ????????????????????????# """ ##### "" | | ?????????????#?# ###### """ ##??# # "" | | ???????????????# "##?##### " | | ?????????????#?# ###### T#??????# "" | | ?????????????????????####+##### "##?#???# " | | ?????????????????????# # ###?????# | | ?????????????????????# """ [ #] // #???????#### | | ?????????????? ??????# """ # // +??????????? | | ?????????????????????# """ + #??????????? | +----------------------------------------------------+ Best States ------------- Heat Dissipation 31 Energy Generation 12 Energy Capacity 265 Matter Stores 300 Matter Capacity 300 Sight Range 18 Terrain Scan Range 14 Terrain Scan Density 10 Armor Coverage 150 Resistance: KI 35 Resistance: TH 35 Resistance: EX 35 Resistance: EM 35 Resistance: I 35 Resistance: S 35 Resistance: P 35 Core Shielding 20 Evasion (%) 55 Targeting Accuracy 5 Offensive Hacking 20 Item Schematics ----------------- None Robot Schematics ------------------ None Fabricated ------------ Nothing Alien Tech Used ----------------- None Achievements -------------- First Step to Greatness Shopping List Challenges ------------ None Game ------ Seed BiomechanicalTractorFilter Manual? 0 Play Time 00:27:05 Cumulative 10.9 hours Start 2022.07.09 @ 01:50:59 End 2022.07.15 @ 18:50:52 Sessions 3 Manual Loads 0 Difficulty Explorer Special Mode None Game No. 5 Rogue 4 Adventurer 0 Explorer 1 Win Type - Total 0 Types 0/0/0/0/0/0/0/0/0 Lore% 3 Gallery% 14 Achievement% 13 Wizard Run 0 Options --------- ASCII 0 Keyboard 0 Movement Mouse Keybinds 0 Fullscreen 1 Font 36/X11 Map View 76x50 Tactical HUD 1 Map Filters NONE Filters SATURATION(60) Steam 1 RUN: 70e13858-fe39-4f27-b157-064e141c89c5